[Event "Titled Tuesday Blitz February 28 Early 2023"]
[White "Zhigalko, Sergei"]
[Black "Fawzy, Adham"]
[WhiteFideId "13502956"]
[BlackFideId "10613129"]
[WhiteElo "2626"]
[BlackElo "2543"]
[Result "1/2-1/2"]
[Round "01"]
[TimeControl "180+2"]
[Date "2023.02.28"]
[WhiteClock "0:00:09"]
[BlackClock "0:00:09"]

1. e4 {[%clk 0:03:00]}  c5 {[%clk 0:02:59]} 2. Nf3 {[%clk 0:03:00]}  d6 {[%clk 0:03:00]} 3. d4 {[%clk 0:02:59]}  cxd4 {[%clk 0:03:01]} 4. Qxd4 {[%clk 0:03:00]}  Nc6 {[%clk 0:03:00]} 5. Bb5 {[%clk 0:02:59]}  Bd7 {[%clk 0:03:00]} 6. Bxc6 {[%clk 0:03:00]}  Bxc6 {[%clk 0:03:01]} 7. Nc3 {[%clk 0:03:00]}  Nf6 {[%clk 0:02:30]} 8. Bg5 {[%clk 0:02:59]}  e6 {[%clk 0:02:31]} 9. O-O-O {[%clk 0:02:59]}  Be7 {[%clk 0:02:30]} 10. Rhe1 {[%clk 0:02:59]}  O-O {[%clk 0:02:26]} 11. Kb1 {[%clk 0:02:59]}  h6 {[%clk 0:02:10]} 12. Bh4 {[%clk 0:02:59]}  b5 {[%clk 0:02:08]} 13. Bxf6 {[%clk 0:02:58]}  Bxf6 {[%clk 0:02:09]} 14. Qxd6 {[%clk 0:02:59]}  Qb6 {[%clk 0:02:10]} 15. Ne5 {[%clk 0:02:59]}  Bxe5 {[%clk 0:02:02]} 16. Qxe5 {[%clk 0:03:00]}  b4 {[%clk 0:02:02]} 17. Ne2 {[%clk 0:02:59]}  Qxf2 {[%clk 0:02:02]} 18. Nf4 {[%clk 0:02:54]}  Rac8 {[%clk 0:01:45]} 19. Nh5 {[%clk 0:02:36]}  f6 {[%clk 0:01:15]} 20. Qxe6+ {[%clk 0:02:35]}  Kh8 {[%clk 0:01:15]} 21. Qg4 {[%clk 0:01:50]}  Qxc2+ {[%clk 0:00:56]} 22. Ka1 {[%clk 0:01:33]}  Rg8 {[%clk 0:00:28]} 23. Nf4 {[%clk 0:00:58]}  Bxe4 {[%clk 0:00:19]} 24. h3 {[%clk 0:00:18]}  Bf5 {[%clk 0:00:18]} 25. Qf3 {[%clk 0:00:17]}  Rgd8 {[%clk 0:00:14]} 26. g4 {[%clk 0:00:16]}  Rxd1+ {[%clk 0:00:12]} 27. Qxd1 {[%clk 0:00:16]}  Qxd1+ {[%clk 0:00:12]} 28. Rxd1 {[%clk 0:00:17]}  Be4 {[%clk 0:00:13]} 29. b3 {[%clk 0:00:17]}  g5 {[%clk 0:00:10]} 30. Nh5 {[%clk 0:00:11]}  f5 {[%clk 0:00:07]} 31. Re1 {[%clk 0:00:11]}  Kh7 {[%clk 0:00:03]} 32. Ng3 {[%clk 0:00:11]}  Kg7 {[%clk 0:00:02]} 33. Nxe4 {[%clk 0:00:09]}  fxe4 {[%clk 0:00:03]} 34. Rxe4 {[%clk 0:00:10]}  Rc3 {[%clk 0:00:03]} 35. Rxb4 {[%clk 0:00:03]}  Rxh3 {[%clk 0:00:03]} 36. Ra4 {[%clk 0:00:04]}  Rg3 {[%clk 0:00:02]} 37. Kb2 {[%clk 0:00:05]}  Kg6 {[%clk 0:00:01]} 38. Ra6+ {[%clk 0:00:05]}  Kg7 {[%clk 0:00:01]} 39. Rxa7+ {[%clk 0:00:06]}  Kg6 {[%clk 0:00:02]} 40. Ra6+ {[%clk 0:00:06]}  Kg7 {[%clk 0:00:02]} 41. Ra4 {[%clk 0:00:07]}  Kf6 {[%clk 0:00:02]} 42. Rc4 {[%clk 0:00:04]}  Rh3 {[%clk 0:00:02]} 43. a4 {[%clk 0:00:04]}  Ke5 {[%clk 0:00:02]} 44. a5 {[%clk 0:00:04]}  h5 {[%clk 0:00:03]} 45. a6 {[%clk 0:00:02]}  hxg4 {[%clk 0:00:02]} 46. Rxg4 {[%clk 0:00:03]}  Kf5 {[%clk 0:00:02]} 47. Ra4 {[%clk 0:00:03]}  Rh8 {[%clk 0:00:02]} 48. b4 {[%clk 0:00:02]}  g4 {[%clk 0:00:01]} 49. b5 {[%clk 0:00:02]}  g3 {[%clk 0:00:02]} 50. Ra1 {[%clk 0:00:02]}  Ke5 {[%clk 0:00:02]} 51. Kb3 {[%clk 0:00:02]}  Kd6 {[%clk 0:00:02]} 52. Kb4 {[%clk 0:00:02]}  Kc7 {[%clk 0:00:02]} 53. Ka5 {[%clk 0:00:03]}  Kb8 {[%clk 0:00:03]} 54. Rg1 {[%clk 0:00:02]}  Rg8 {[%clk 0:00:03]} 55. Rg2 {[%clk 0:00:03]}  Ka8 {[%clk 0:00:03]} 56. Kb6 {[%clk 0:00:03]}  Kb8 {[%clk 0:00:01]} 57. Ka5 {[%clk 0:00:03]}  Ka8 {[%clk 0:00:02]} 58. Kb4 {[%clk 0:00:03]}  Rg4+ {[%clk 0:00:02]} 59. Kc5 {[%clk 0:00:03]}  Rg5+ {[%clk 0:00:02]} 60. Kc6 {[%clk 0:00:04]}  Rg6+ {[%clk 0:00:03]} 61. Kd5 {[%clk 0:00:04]}  Rg5+ {[%clk 0:00:03]} 62. Kc4 {[%clk 0:00:05]}  Rg4+ {[%clk 0:00:04]} 63. Kb3 {[%clk 0:00:06]}  Rg5 {[%clk 0:00:04]} 64. Kb4 {[%clk 0:00:06]}  Rg4+ {[%clk 0:00:04]} 65. Ka5 {[%clk 0:00:06]}  Rg5 {[%clk 0:00:05]} 66. Ka4 {[%clk 0:00:04]}  Rg4+ {[%clk 0:00:05]} 67. Kb3 {[%clk 0:00:04]}  Rg5 {[%clk 0:00:05]} 68. Kc4 {[%clk 0:00:04]}  Rg4+ {[%clk 0:00:06]} 69. Kc3 {[%clk 0:00:05]}  Rg5 {[%clk 0:00:05]} 70. b6 {[%clk 0:00:05]}  Rg6 {[%clk 0:00:04]} 71. b7+ {[%clk 0:00:03]}  Ka7 {[%clk 0:00:04]} 72. Rb2 {[%clk 0:00:03]}  Rg8 {[%clk 0:00:03]} 73. Rb1 {[%clk 0:00:01]}  g2 {[%clk 0:00:03]} 74. Rg1 {[%clk 0:00:01]}  Kxa6 {[%clk 0:00:03]} 75. Rxg2 {[%clk 0:00:01]}  Rb8 {[%clk 0:00:03]} 76. Rb2 {[%clk 0:00:02]}  Rxb7 {[%clk 0:00:03]} 77. Ra2+ {[%clk 0:00:03]}  Kb6 {[%clk 0:00:04]} 78. Kc4 {[%clk 0:00:03]}  Kc7 {[%clk 0:00:05]} 79. Kd5 {[%clk 0:00:04]}  Rb5+ {[%clk 0:00:04]} 80. Kc4 {[%clk 0:00:04]}  Rb6 {[%clk 0:00:05]} 81. Ra7+ {[%clk 0:00:04]}  Rb7 {[%clk 0:00:06]} 82. Ra5 {[%clk 0:00:05]}  Rb6 {[%clk 0:00:06]} 83. Rg5 {[%clk 0:00:06]}  Rc6+ {[%clk 0:00:06]} 84. Kb5 {[%clk 0:00:06]}  Rb6+ {[%clk 0:00:07]} 85. Kc5 {[%clk 0:00:07]}  Rc6+ {[%clk 0:00:08]} 86. Kb5 {[%clk 0:00:07]}  Rb6+ {[%clk 0:00:08]} 87. Kc4 {[%clk 0:00:08]}  Rc6+ {[%clk 0:00:09]} 88. Rc5 {[%clk 0:00:08]}  Rxc5+ {[%clk 0:00:09]} 89. Kxc5 {[%clk 0:00:09]} 1/2-1/2


[Site "https://www.chess.com"]

[Event "Titled Tuesday Blitz February 28 Early 2023"]
[White "Vivas Zamora, Fabian Ernesto"]
[Black "Bacrot, Etienne"]
[WhiteFideId "3902480"]
[BlackFideId "605506"]
[WhiteElo "2262"]
[BlackElo "2667"]
[Result "0-1"]
[Round "01"]
[TimeControl "180+2"]
[Date "2023.02.28"]
[WhiteClock "0:00:01"]
[BlackClock "0:00:08"]

1. c4 {[%clk 0:02:58]}  c6 {[%clk 0:02:50]} 2. Nf3 {[%clk 0:02:57]}  d5 {[%clk 0:02:49]} 3. b3 {[%clk 0:02:50]}  Nf6 {[%clk 0:02:48]} 4. Bb2 {[%clk 0:02:49]}  g6 {[%clk 0:02:48]} 5. g3 {[%clk 0:02:49]}  Bg7 {[%clk 0:02:48]} 6. Bg2 {[%clk 0:02:50]}  O-O {[%clk 0:02:49]} 7. O-O {[%clk 0:02:50]}  a5 {[%clk 0:02:47]} 8. Nc3 {[%clk 0:02:42]}  Na6 {[%clk 0:02:45]} 9. e3 {[%clk 0:02:23]}  Bf5 {[%clk 0:02:35]} 10. d4 {[%clk 0:01:58]}  Nb4 {[%clk 0:02:35]} 11. Ne5 {[%clk 0:01:48]}  Nd7 {[%clk 0:02:31]} 12. Nxd7 {[%clk 0:01:42]}  Qxd7 {[%clk 0:02:31]} 13. cxd5 {[%clk 0:01:35]}  cxd5 {[%clk 0:02:27]} 14. Na4 {[%clk 0:01:32]}  Qd6 {[%clk 0:02:16]} 15. Ba3 {[%clk 0:01:30]}  Rac8 {[%clk 0:02:12]} 16. Rc1 {[%clk 0:01:18]}  Rxc1 {[%clk 0:02:09]} 17. Qxc1 {[%clk 0:01:18]}  Rc8 {[%clk 0:02:08]} 18. Qe1 {[%clk 0:01:07]}  Bd3 {[%clk 0:02:02]} 19. Nc5 {[%clk 0:00:57]}  Bxf1 {[%clk 0:02:01]} 20. Qxf1 {[%clk 0:00:52]}  b6 {[%clk 0:01:58]} 21. Nd3 {[%clk 0:00:46]}  e6 {[%clk 0:01:55]} 22. Bxb4 {[%clk 0:00:35]}  axb4 {[%clk 0:01:54]} 23. Qe1 {[%clk 0:00:36]}  Rc3 {[%clk 0:01:53]} 24. Bf1 {[%clk 0:00:31]}  Bf8 {[%clk 0:01:47]} 25. a3 {[%clk 0:00:18]}  Rxb3 {[%clk 0:01:41]} 26. axb4 {[%clk 0:00:18]}  Qc7 {[%clk 0:01:41]} 27. Qa1 {[%clk 0:00:15]}  Qc2 {[%clk 0:01:21]} 28. Qa4 {[%clk 0:00:08]}  Bd6 {[%clk 0:00:58]} 29. Qe8+ {[%clk 0:00:08]}  Kg7 {[%clk 0:00:57]} 30. Qd7 {[%clk 0:00:05]}  Qc7 {[%clk 0:00:54]} 31. Qa4 {[%clk 0:00:04]}  Rb1 {[%clk 0:00:52]} 32. Kg2 {[%clk 0:00:05]}  h5 {[%clk 0:00:49]} 33. h4 {[%clk 0:00:04]}  Be7 {[%clk 0:00:32]} 34. Qa2 {[%clk 0:00:04]}  Rxb4 {[%clk 0:00:13]} 35. Nxb4 {[%clk 0:00:04]}  Bxb4 {[%clk 0:00:14]} 36. Qb3 {[%clk 0:00:04]}  Bd6 {[%clk 0:00:14]} 37. Qb5 {[%clk 0:00:04]}  Be7 {[%clk 0:00:14]} 38. Bd3 {[%clk 0:00:04]}  Bd8 {[%clk 0:00:13]} 39. Be2 {[%clk 0:00:05]}  Qc3 {[%clk 0:00:12]} 40. Bd3 {[%clk 0:00:05]}  Bc7 {[%clk 0:00:12]} 41. Be2 {[%clk 0:00:05]}  Qd2 {[%clk 0:00:12]} 42. Qd3 {[%clk 0:00:05]}  Qb2 {[%clk 0:00:12]} 43. Qb5 {[%clk 0:00:05]}  Qc3 {[%clk 0:00:11]} 44. Qd3 {[%clk 0:00:05]}  Qb4 {[%clk 0:00:11]} 45. Qb5 {[%clk 0:00:06]}  Qd6 {[%clk 0:00:11]} 46. Qd3 {[%clk 0:00:06]}  Bd8 {[%clk 0:00:11]} 47. Qb5 {[%clk 0:00:07]}  Be7 {[%clk 0:00:12]} 48. Qd3 {[%clk 0:00:07]}  e5 {[%clk 0:00:12]} 49. dxe5 {[%clk 0:00:07]}  Qxe5 {[%clk 0:00:12]} 50. Bf3 {[%clk 0:00:07]}  Bc5 {[%clk 0:00:12]} 51. Qxd5 {[%clk 0:00:07]}  Qb2 {[%clk 0:00:12]} 52. Qd7 {[%clk 0:00:05]}  Bxe3 {[%clk 0:00:11]} 53. Bd5 {[%clk 0:00:02]}  Qxf2+ {[%clk 0:00:11]} 54. Kh3 {[%clk 0:00:01]}  Qf1+ {[%clk 0:00:11]} 55. Bg2 {[%clk 0:00:01]}  Qf6 {[%clk 0:00:11]} 56. Qd3 {[%clk 0:00:01]}  Bc5 {[%clk 0:00:11]} 57. Qb5 {[%clk 0:00:01]}  Qe5 {[%clk 0:00:11]} 58. Qc6 {[%clk 0:00:01]}  Bd6 {[%clk 0:00:09]} 59. Qf3 {[%clk 0:00:01]}  b5 {[%clk 0:00:09]} 60. Bf1 {[%clk 0:00:01]}  Qe6+ {[%clk 0:00:08]} 61. Kg2 {[%clk 0:00:01]}  b4 {[%clk 0:00:08]} 0-1


[Site "https://www.chess.com"]

[Event "Titled Tuesday Blitz February 28 Early 2023"]
[White "Dardha, Daniel"]
[Black "Arencibia Monduy, Antonio"]
[WhiteFideId "240990"]
[BlackFideId "3507939"]
[WhiteElo "2581"]
[BlackElo "2467"]
[Result "1-0"]
[Round "01"]
[TimeControl "180+2"]
[Date "2023.02.28"]
[WhiteClock "0:01:42"]
[BlackClock "0:00:19"]

1. d4 {[%clk 0:02:55]}  Nf6 {[%clk 0:02:59]} 2. Bg5 {[%clk 0:02:54]}  d5 {[%clk 0:02:56]} 3. e3 {[%clk 0:02:53]}  e6 {[%clk 0:02:53]} 4. Nd2 {[%clk 0:02:52]}  Be7 {[%clk 0:02:52]} 5. f4 {[%clk 0:02:52]}  Ne4 {[%clk 0:02:47]} 6. Nxe4 {[%clk 0:02:51]}  dxe4 {[%clk 0:02:47]} 7. Bxe7 {[%clk 0:02:52]}  Qxe7 {[%clk 0:02:47]} 8. Qd2 {[%clk 0:02:53]}  O-O {[%clk 0:02:44]} 9. Bc4 {[%clk 0:02:49]}  Nd7 {[%clk 0:02:37]} 10. Ne2 {[%clk 0:02:48]}  b6 {[%clk 0:02:34]} 11. O-O {[%clk 0:02:47]}  Bb7 {[%clk 0:02:34]} 12. Ng3 {[%clk 0:02:44]}  f5 {[%clk 0:02:26]} 13. d5 {[%clk 0:02:29]}  exd5 {[%clk 0:02:16]} 14. Bxd5+ {[%clk 0:02:27]}  Bxd5 {[%clk 0:02:17]} 15. Qxd5+ {[%clk 0:02:28]}  Qf7 {[%clk 0:02:15]} 16. Nxf5 {[%clk 0:02:27]}  Qxd5 {[%clk 0:02:04]} 17. Ne7+ {[%clk 0:02:27]}  Kf7 {[%clk 0:02:04]} 18. Nxd5 {[%clk 0:02:27]}  c6 {[%clk 0:02:01]} 19. Nc3 {[%clk 0:02:26]}  Nf6 {[%clk 0:01:57]} 20. h3 {[%clk 0:02:25]}  h5 {[%clk 0:01:55]} 21. Rfd1 {[%clk 0:02:24]}  Rad8 {[%clk 0:01:54]} 22. Kf2 {[%clk 0:02:24]}  Ke6 {[%clk 0:01:49]} 23. Ne2 {[%clk 0:02:22]}  c5 {[%clk 0:01:47]} 24. Nc3 {[%clk 0:02:16]}  Kf5 {[%clk 0:01:32]} 25. a4 {[%clk 0:02:15]}  g5 {[%clk 0:01:23]} 26. fxg5 {[%clk 0:02:12]}  Kxg5 {[%clk 0:01:23]} 27. Ke2 {[%clk 0:02:08]}  Kh4 {[%clk 0:01:18]} 28. Rf1 {[%clk 0:02:07]}  Kg3 {[%clk 0:01:11]} 29. Rxf6 {[%clk 0:02:06]}  Rxf6 {[%clk 0:00:59]} 30. Nxe4+ {[%clk 0:02:06]}  Kxg2 {[%clk 0:01:00]} 31. Nxf6 {[%clk 0:02:06]}  h4 {[%clk 0:00:46]} 32. Nh5 {[%clk 0:01:59]}  Kxh3 {[%clk 0:00:43]} 33. Rh1+ {[%clk 0:01:56]}  Kg4 {[%clk 0:00:43]} 34. Nf4 {[%clk 0:01:56]}  c4 {[%clk 0:00:35]} 35. Rg1+ {[%clk 0:01:48]}  Kf5 {[%clk 0:00:31]} 36. c3 {[%clk 0:01:45]}  a6 {[%clk 0:00:27]} 37. Kf3 {[%clk 0:01:45]}  Rd2 {[%clk 0:00:23]} 38. Rg6 {[%clk 0:01:41]}  Rxb2 {[%clk 0:00:19]} 39. e4+ {[%clk 0:01:42]} 1-0


[Site "https://www.chess.com"]

[Event "Titled Tuesday Blitz February 28 Early 2023"]
[White "Valgmae, Toomas"]
[Black "Perez Ponsa, Federico"]
[WhiteFideId "4502523"]
[BlackFideId "117927"]
[WhiteElo "2170"]
[BlackElo "2592"]
[Result "1-0"]
[Round "01"]
[TimeControl "180+2"]
[Date "2023.02.28"]
[WhiteClock "0:00:27"]
[BlackClock "0:00:18"]

1. d4 {[%clk 0:03:00]}  Nf6 {[%clk 0:02:54]} 2. c4 {[%clk 0:02:59]}  g6 {[%clk 0:02:54]} 3. Nc3 {[%clk 0:03:00]}  Bg7 {[%clk 0:02:54]} 4. e4 {[%clk 0:02:59]}  d6 {[%clk 0:02:54]} 5. Be2 {[%clk 0:03:00]}  O-O {[%clk 0:02:55]} 6. Bg5 {[%clk 0:03:00]}  c5 {[%clk 0:02:55]} 7. d5 {[%clk 0:03:00]}  e6 {[%clk 0:02:55]} 8. Qd2 {[%clk 0:02:58]}  exd5 {[%clk 0:02:55]} 9. cxd5 {[%clk 0:02:59]}  Re8 {[%clk 0:02:53]} 10. f3 {[%clk 0:02:59]}  a6 {[%clk 0:02:53]} 11. a4 {[%clk 0:02:59]}  h6 {[%clk 0:02:52]} 12. Be3 {[%clk 0:02:58]}  h5 {[%clk 0:02:51]} 13. h4 {[%clk 0:02:53]}  Nh7 {[%clk 0:02:49]} 14. g3 {[%clk 0:02:50]}  Nd7 {[%clk 0:02:47]} 15. Nh3 {[%clk 0:02:49]}  Ne5 {[%clk 0:02:45]} 16. Nf4 {[%clk 0:02:47]}  Rb8 {[%clk 0:02:41]} 17. O-O {[%clk 0:02:46]}  Bd7 {[%clk 0:02:38]} 18. a5 {[%clk 0:02:43]}  b5 {[%clk 0:02:33]} 19. axb6 {[%clk 0:02:44]}  Qxb6 {[%clk 0:02:32]} 20. Rxa6 {[%clk 0:02:38]}  Qxb2 {[%clk 0:02:32]} 21. Rxd6 {[%clk 0:02:37]}  Qxd2 {[%clk 0:02:21]} 22. Bxd2 {[%clk 0:02:38]}  Rb2 {[%clk 0:02:20]} 23. Rd1 {[%clk 0:02:28]}  Ra8 {[%clk 0:02:17]} 24. Nd3 {[%clk 0:02:08]}  Nxd3 {[%clk 0:02:10]} 25. Bxd3 {[%clk 0:02:04]}  Bd4+ {[%clk 0:02:07]} 26. Kf1 {[%clk 0:02:00]}  Bh3+ {[%clk 0:02:00]} 27. Ke1 {[%clk 0:01:58]}  Be5 {[%clk 0:01:56]} 28. Rc6 {[%clk 0:01:50]}  Bxg3+ {[%clk 0:01:53]} 29. Ke2 {[%clk 0:01:50]}  Bxh4 {[%clk 0:01:44]} 30. Rb1 {[%clk 0:01:46]}  Rxb1 {[%clk 0:01:32]} 31. Bxb1 {[%clk 0:01:47]}  Be7 {[%clk 0:01:29]} 32. d6 {[%clk 0:01:35]}  Bf8 {[%clk 0:01:26]} 33. e5 {[%clk 0:01:34]}  Rc8 {[%clk 0:01:19]} 34. Rxc8 {[%clk 0:01:26]}  Bxc8 {[%clk 0:01:20]} 35. Ne4 {[%clk 0:01:26]}  h4 {[%clk 0:01:18]} 36. Nxc5 {[%clk 0:01:20]}  h3 {[%clk 0:01:11]} 37. Kf2 {[%clk 0:01:19]}  f6 {[%clk 0:01:08]} 38. f4 {[%clk 0:01:16]}  g5 {[%clk 0:01:02]} 39. Ba2+ {[%clk 0:01:00]}  Kh8 {[%clk 0:00:56]} 40. Be6 {[%clk 0:01:00]}  gxf4 {[%clk 0:00:38]} 41. Bxc8 {[%clk 0:00:55]}  fxe5 {[%clk 0:00:39]} 42. Ne4 {[%clk 0:00:53]}  Kg7 {[%clk 0:00:36]} 43. d7 {[%clk 0:00:52]}  Be7 {[%clk 0:00:36]} 44. Ba5 {[%clk 0:00:52]}  Ng5 {[%clk 0:00:16]} 45. Nxg5 {[%clk 0:00:51]}  h2 {[%clk 0:00:11]} 46. Ne6+ {[%clk 0:00:46]}  Kf7 {[%clk 0:00:04]} 47. Kg2 {[%clk 0:00:47]}  f3+ {[%clk 0:00:02]} 48. Kxh2 {[%clk 0:00:46]}  e4 {[%clk 0:00:03]} 49. d8=Q {[%clk 0:00:44]}  Bxd8 {[%clk 0:00:03]} 50. Nxd8+ {[%clk 0:00:45]}  Kf6 {[%clk 0:00:03]} 51. Kg3 {[%clk 0:00:45]}  e3 {[%clk 0:00:04]} 52. Kxf3 {[%clk 0:00:44]}  e2 {[%clk 0:00:05]} 53. Kxe2 {[%clk 0:00:44]}  Ke5 {[%clk 0:00:06]} 54. Ba6 {[%clk 0:00:44]}  Kd5 {[%clk 0:00:07]} 55. Nf7 {[%clk 0:00:42]}  Ke4 {[%clk 0:00:07]} 56. Ng5+ {[%clk 0:00:42]}  Kd5 {[%clk 0:00:08]} 57. Kd3 {[%clk 0:00:41]}  Ke5 {[%clk 0:00:09]} 58. Nf3+ {[%clk 0:00:41]}  Kd5 {[%clk 0:00:09]} 59. Bc4+ {[%clk 0:00:40]}  Kd6 {[%clk 0:00:10]} 60. Bc3 {[%clk 0:00:41]}  Kc5 {[%clk 0:00:10]} 61. Bd4+ {[%clk 0:00:41]}  Kd6 {[%clk 0:00:11]} 62. Ke4 {[%clk 0:00:41]}  Kc6 {[%clk 0:00:12]} 63. Ne5+ {[%clk 0:00:42]}  Kd6 {[%clk 0:00:13]} 64. Be3 {[%clk 0:00:40]}  Ke7 {[%clk 0:00:13]} 65. Kd5 {[%clk 0:00:41]}  Kf6 {[%clk 0:00:14]} 66. Bd3 {[%clk 0:00:41]}  Ke7 {[%clk 0:00:14]} 67. Bg5+ {[%clk 0:00:41]}  Kf8 {[%clk 0:00:14]} 68. Bf5 {[%clk 0:00:40]}  Kg7 {[%clk 0:00:14]} 69. Ke6 {[%clk 0:00:40]}  Kf8 {[%clk 0:00:15]} 70. Bg6 {[%clk 0:00:39]}  Kg7 {[%clk 0:00:15]} 71. Kf5 {[%clk 0:00:38]}  Kf8 {[%clk 0:00:16]} 72. Kf6 {[%clk 0:00:37]}  Kg8 {[%clk 0:00:16]} 73. Bh6 {[%clk 0:00:34]}  Kh8 {[%clk 0:00:16]} 74. Nf7+ {[%clk 0:00:27]}  Kg8 {[%clk 0:00:16]} 75. Ng5 {[%clk 0:00:27]}  Kh8 {[%clk 0:00:17]} 76. Bg7+ {[%clk 0:00:27]}  Kg8 {[%clk 0:00:18]} 77. Bf7# {[%clk 0:00:27]} 1-0


[Site "https://www.chess.com"]

[Event "Titled Tuesday Blitz February 28 Early 2023"]
[White "Tworuszka, Michal"]
[Black "Rustemov, Alexander"]
[WhiteFideId "1117858"]
[BlackFideId "4119002"]
[WhiteElo "2462"]
[BlackElo "2883"]
[Result "0-1"]
[Round "01"]
[TimeControl "180+2"]
[Date "2023.02.28"]
[WhiteClock "0:00:02"]
[BlackClock "0:00:46"]

1. d4 {[%clk 0:02:52]}  g6 {[%clk 0:02:58]} 2. c4 {[%clk 0:02:52]}  Bg7 {[%clk 0:02:58]} 3. Nf3 {[%clk 0:02:50]}  d6 {[%clk 0:02:56]} 4. g3 {[%clk 0:02:50]}  c5 {[%clk 0:02:55]} 5. Bg2 {[%clk 0:02:46]}  Nc6 {[%clk 0:02:46]} 6. dxc5 {[%clk 0:02:29]}  Qa5+ {[%clk 0:02:46]} 7. Nc3 {[%clk 0:02:15]}  Bxc3+ {[%clk 0:02:37]} 8. bxc3 {[%clk 0:02:13]}  Qxc5 {[%clk 0:02:37]} 9. Qd5 {[%clk 0:02:04]}  Qxd5 {[%clk 0:02:17]} 10. cxd5 {[%clk 0:02:05]}  Na5 {[%clk 0:02:18]} 11. Be3 {[%clk 0:01:53]}  Nf6 {[%clk 0:02:16]} 12. Bd4 {[%clk 0:01:50]}  O-O {[%clk 0:02:04]} 13. Nd2 {[%clk 0:01:40]}  b6 {[%clk 0:01:59]} 14. Nb3 {[%clk 0:01:27]}  Nc4 {[%clk 0:01:57]} 15. Bxf6 {[%clk 0:01:24]}  exf6 {[%clk 0:01:56]} 16. Nd4 {[%clk 0:01:18]}  Bd7 {[%clk 0:01:55]} 17. e3 {[%clk 0:00:44]}  Rac8 {[%clk 0:01:54]} 18. Rc1 {[%clk 0:00:42]}  Rc7 {[%clk 0:01:53]} 19. Ke2 {[%clk 0:00:37]}  Rfc8 {[%clk 0:01:52]} 20. Kd3 {[%clk 0:00:33]}  Nb2+ {[%clk 0:01:42]} 21. Kd2 {[%clk 0:00:31]}  Nc4+ {[%clk 0:01:32]} 22. Kd3 {[%clk 0:00:31]}  f5 {[%clk 0:01:30]} 23. Rhe1 {[%clk 0:00:23]}  Kg7 {[%clk 0:01:29]} 24. Re2 {[%clk 0:00:22]}  Kf6 {[%clk 0:01:27]} 25. Ree1 {[%clk 0:00:17]}  b5 {[%clk 0:01:18]} 26. e4 {[%clk 0:00:17]}  fxe4+ {[%clk 0:01:14]} 27. Bxe4 {[%clk 0:00:18]}  Nb2+ {[%clk 0:00:58]} 28. Kd2 {[%clk 0:00:16]}  Na4 {[%clk 0:00:57]} 29. Re3 {[%clk 0:00:10]}  Nc5 {[%clk 0:00:55]} 30. Bb1 {[%clk 0:00:04]}  a5 {[%clk 0:00:53]} 31. f3 {[%clk 0:00:04]}  b4 {[%clk 0:00:51]} 32. cxb4 {[%clk 0:00:04]}  Ne4+ {[%clk 0:00:49]} 33. Rxe4 {[%clk 0:00:04]}  Rxc1 {[%clk 0:00:49]} 34. Bc2 {[%clk 0:00:03]}  Ra1 {[%clk 0:00:47]} 35. Bb3 {[%clk 0:00:02]}  a4 {[%clk 0:00:46]} 0-1


[Site "https://www.chess.com"]

[Event "Titled Tuesday Blitz February 28 Early 2023"]
[White "Boros, Denes"]
[Black "Rottenwohrer Suarez, Juan"]
[WhiteFideId "722340"]
[BlackFideId "32068182"]
[WhiteElo "2464"]
[BlackElo "2174"]
[Result "1-0"]
[Round "01"]
[TimeControl "180+2"]
[Date "2023.02.28"]
[WhiteClock "0:00:32"]
[BlackClock "0:00:02"]

1. d4 {[%clk 0:03:00]}  Nf6 {[%clk 0:02:58]} 2. Nc3 {[%clk 0:03:01]}  c5 {[%clk 0:02:56]} 3. Nf3 {[%clk 0:02:59]}  cxd4 {[%clk 0:02:56]} 4. Nxd4 {[%clk 0:03:00]}  d5 {[%clk 0:02:55]} 5. e4 {[%clk 0:03:00]}  dxe4 {[%clk 0:02:49]} 6. Bg5 {[%clk 0:02:57]}  a6 {[%clk 0:02:43]} 7. Bc4 {[%clk 0:02:51]}  e6 {[%clk 0:02:40]} 8. Qd2 {[%clk 0:02:28]}  Be7 {[%clk 0:02:29]} 9. O-O-O {[%clk 0:02:27]}  O-O {[%clk 0:02:25]} 10. Bxf6 {[%clk 0:02:25]}  Bxf6 {[%clk 0:02:23]} 11. Nxe4 {[%clk 0:02:26]}  Be7 {[%clk 0:02:15]} 12. Qf4 {[%clk 0:02:18]}  Qa5 {[%clk 0:02:11]} 13. Qg3 {[%clk 0:02:13]}  Nc6 {[%clk 0:02:01]} 14. Nxc6 {[%clk 0:02:05]}  bxc6 {[%clk 0:02:01]} 15. h4 {[%clk 0:02:05]}  Qb4 {[%clk 0:01:48]} 16. Qb3 {[%clk 0:01:42]}  a5 {[%clk 0:01:40]} 17. h5 {[%clk 0:01:37]}  h6 {[%clk 0:01:39]} 18. Rd4 {[%clk 0:01:30]}  c5 {[%clk 0:01:06]} 19. Rd3 {[%clk 0:01:14]}  a4 {[%clk 0:01:03]} 20. Qc3 {[%clk 0:01:12]}  Bb7 {[%clk 0:00:59]} 21. Re1 {[%clk 0:00:56]}  Rfb8 {[%clk 0:00:54]} 22. a3 {[%clk 0:00:53]}  Qb6 {[%clk 0:00:45]} 23. Rg3 {[%clk 0:00:52]}  Bf8 {[%clk 0:00:31]} 24. Ree3 {[%clk 0:00:37]}  Kh8 {[%clk 0:00:09]} 25. Rg4 {[%clk 0:00:36]}  f5 {[%clk 0:00:06]} 26. Rg6 {[%clk 0:00:36]}  Bxe4 {[%clk 0:00:02]} 27. Rxh6+ {[%clk 0:00:36]}  Kg8 {[%clk 0:00:02]} 28. Bxe6+ {[%clk 0:00:33]}  Qxe6 {[%clk 0:00:02]} 29. Rxe6 {[%clk 0:00:34]}  Kf7 {[%clk 0:00:02]} 30. R6xe4 {[%clk 0:00:34]}  fxe4 {[%clk 0:00:02]} 31. Qc4+ {[%clk 0:00:34]}  Ke8 {[%clk 0:00:02]} 32. Rxe4+ {[%clk 0:00:32]} 1-0


[Site "https://www.chess.com"]

[Event "Titled Tuesday Blitz February 28 Early 2023"]
[White "Kravtsiv, Martyn"]
[Black "Abdilkhair, Abilmansur"]
[WhiteFideId "14113147"]
[BlackFideId "13716417"]
[WhiteElo "2695"]
[BlackElo "2216"]
[Result "1-0"]
[Round "01"]
[TimeControl "180+2"]
[Date "2023.02.28"]
[WhiteClock "0:01:28"]
[BlackClock "0:00:16"]

1. e4 {[%clk 0:02:59]}  e5 {[%clk 0:02:59]} 2. Nf3 {[%clk 0:02:58]}  Nc6 {[%clk 0:03:00]} 3. Nc3 {[%clk 0:02:58]}  Nf6 {[%clk 0:03:00]} 4. a4 {[%clk 0:02:58]}  Bc5 {[%clk 0:02:58]} 5. Nxe5 {[%clk 0:02:56]}  Nxe5 {[%clk 0:02:54]} 6. d4 {[%clk 0:02:56]}  Bd6 {[%clk 0:02:54]} 7. dxe5 {[%clk 0:02:54]}  Bxe5 {[%clk 0:02:55]} 8. Bd3 {[%clk 0:02:53]}  O-O {[%clk 0:02:53]} 9. O-O {[%clk 0:02:52]}  d5 {[%clk 0:02:50]} 10. Nxd5 {[%clk 0:02:48]}  Nxd5 {[%clk 0:02:42]} 11. exd5 {[%clk 0:02:49]}  g6 {[%clk 0:02:31]} 12. Qf3 {[%clk 0:02:43]}  Qh4 {[%clk 0:02:20]} 13. h3 {[%clk 0:02:41]}  Bg7 {[%clk 0:02:12]} 14. c3 {[%clk 0:02:38]}  Bd7 {[%clk 0:02:04]} 15. Bf4 {[%clk 0:02:35]}  c6 {[%clk 0:02:04]} 16. d6 {[%clk 0:02:34]}  Be6 {[%clk 0:01:57]} 17. Rfe1 {[%clk 0:02:30]}  Bd5 {[%clk 0:01:51]} 18. Be4 {[%clk 0:02:29]}  Bxe4 {[%clk 0:01:46]} 19. Rxe4 {[%clk 0:02:28]}  f5 {[%clk 0:01:38]} 20. Re7 {[%clk 0:02:26]}  g5 {[%clk 0:01:24]} 21. Be3 {[%clk 0:01:56]}  Rad8 {[%clk 0:01:10]} 22. Rxb7 {[%clk 0:01:54]}  Kh8 {[%clk 0:00:40]} 23. Qxc6 {[%clk 0:01:45]}  f4 {[%clk 0:00:34]} 24. Qc7 {[%clk 0:01:44]}  Rg8 {[%clk 0:00:20]} 25. Bd4 {[%clk 0:01:35]}  Bxd4 {[%clk 0:00:20]} 26. cxd4 {[%clk 0:01:36]}  f3 {[%clk 0:00:20]} 27. Qe7 {[%clk 0:01:35]}  Qh6 {[%clk 0:00:17]} 28. Qe5+ {[%clk 0:01:35]}  Rg7 {[%clk 0:00:17]} 29. Rxa7 {[%clk 0:01:34]}  Qg6 {[%clk 0:00:17]} 30. Rxg7 {[%clk 0:01:32]}  Qxg7 {[%clk 0:00:18]} 31. gxf3 {[%clk 0:01:31]}  h5 {[%clk 0:00:15]} 32. a5 {[%clk 0:01:30]}  Kh7 {[%clk 0:00:14]} 33. Qxg7+ {[%clk 0:01:29]}  Kxg7 {[%clk 0:00:15]} 34. a6 {[%clk 0:01:29]}  Rxd6 {[%clk 0:00:15]} 35. a7 {[%clk 0:01:28]}  Rxd4 {[%clk 0:00:16]} 1-0


[Site "https://www.chess.com"]